bitfinex-derivatives/quotes_ETHF0:USTF0_20240924
["timestamp","ask_amount","ask_price","bid_price","bid_amount"]
[1727144177915,0.38201,2617.8,2617.4,7.37647]
[1727144178116,0.38201,2617.8,2617.5,40.8]
[1727144178415,0.38201,2617.9,2617.5,40.8]
[1727144178916,4.62923,2618.2,2617.5,40.8]
[1727144179116,4.62923,2618.2,2616.9,0.4747]
[1727144179117,3.2078,2617.7,2616.9,0.4747]
[1727144179318,0.472,2617.6,2616.9,0.4747]
[1727144179629,0.38208,2617.4,2617.0,40.8]
[1727144179812,0.38207,2617.5,2617.0,40.8]
[1727144180010,0.38202,2617.8,2617.4,3.69207]
[1727144180224,0.38201,2617.9,2617.4,3.31]
[1727144180537,0.38201,2617.9,2617.3,3.2078]
[1727144180538,0.38201,2617.9,2617.7,2.68]
[1727144180724,0.382,2617.9,2617.7,2.68]
[1727144181021,3.2078,2618.0,2617.7,2.68]
[1727144181223,3.2078,2618.0,2617.7,3.06202]
[1727144181418,3.2078,2618.0,2617.7,3.06203]
[1727144181611,3.2078,2618.0,2617.9,2.68]
[1727144184628,3.58979,2618.0,2617.7,3.163]
[1727144185122,3.58979,2618.0,2617.7,2.68]
[1727144185322,0.38202,2617.8,2617.5,2.68]
[1727144185524,0.38199,2618.0,2617.7,2.68]
[1727144185738,4.57612642,2618.1,2617.7,2.68]
[1727144185922,4.57612642,2618.1,2617.7,3.06203]
[1727144186320,4.19414642,2618.1,2617.9,2.68]
[1727144186517,0.98634642,2618.3,2617.9,3.06199]
[1727144186726,0.98634642,2618.3,2618.2,2.68]
[1727144186919,0.98634642,2618.4,2618.2,43.48]
[1727144187423,4.57605642,2618.5,2618.2,43.48]
[1727144187928,0.38193,2618.4,2618.2,43.48]
[1727144188124,0.38194,2618.3,2618.2,43.48]
[1727144188331,1.36827642,2618.4,2618.2,43.48]
[1727144188631,0.98634642,2618.4,2618.2,43.48]
[1727144189529,0.98634642,2618.3,2618.2,43.48]
[1727144189833,1.36828642,2618.3,2618.2,40.8]
[1727144190030,0.98634642,2618.3,2618.0,3.6804]
[1727144190219,1.37296661,2618.2,2618.0,3.6804]
[1727144190420,1.37296661,2618.2,2618.1,40.8]
[1727144190421,0.99100661,2618.2,2618.1,40.8]
[1727144190829,0.99100661,2618.2,2618.0,4.06238]
[1727144191231,0.38193,2618.4,2618.0,3.6804]
[1727144191526,4.19880661,2618.5,2618.0,3.6804]
[1727144191527,0.99100661,2618.5,2618.2,2.68]
[1727144191724,0.38191,2618.5,2618.2,2.68]
[1727144192423,1.37291661,2618.5,2618.2,2.68]
[1727144192627,0.99100661,2618.5,2618.2,2.68]
[1727144192830,1.37291661,2618.5,2618.2,2.68]
[1727144193632,0.99100661,2618.8,2618.4,5.8878]
[1727144193831,0.99100661,2619.2,2618.9,0.38185]
[1727144194131,1.48175245,2619.3,2619.1,2.68]
[1727144194132,0.99100661,2619.3,2619.1,2.68]
[1727144194334,0.38184,2619.0,2618.9,2.68]
[1727144194530,0.99100661,2619.2,2618.9,2.68]
[1727144194727,1.37282661,2619.2,2618.9,2.68]
[1727144195232,1.48175245,2619.3,2619.1,2.68]
[1727144195233,1.37280661,2619.3,2619.1,2.68]
[1727144195624,0.99100661,2619.3,2619.1,6.26962]
[1727144195935,4.19880661,2619.6,2619.2,41.1818]
[1727144196229,4.19880661,2619.6,2619.3,2.68]
[1727144196432,0.99100661,2619.7,2619.3,2.68]
[1727144196637,0.38175,2619.6,2619.3,2.68]
[1727144196834,0.99100661,2619.7,2619.3,2.68]
[1727144197030,0.38178,2619.5,2619.3,2.68]
[1727144197230,0.99100661,2619.6,2619.2,40.8]
[1727144197430,0.38179,2619.4,2619.2,40.8]
[1727144197635,0.3818,2619.3,2619.2,40.8]
[1727144197931,0.99100661,2619.6,2619.2,40.8]
[1727144198136,1.37277661,2619.5,2619.2,40.8]
[1727144198434,0.38177,2619.5,2619.2,40.8]
[1727144198835,1.37278661,2619.5,2619.2,40.8]
[1727144199139,0.38178,2619.5,2619.2,40.8]
[1727144199338,0.99100661,2619.6,2619.4,2.68]
[1727144199638,1.37276661,2619.6,2619.4,2.68]
[1727144199832,0.99100661,2619.6,2619.4,2.68]
[1727144200024,0.99100661,2619.8,2619.4,2.68]
[1727144200229,1.37273661,2619.8,2619.6,2.68]
[1727144200631,0.38174,2619.7,2619.6,2.68]
[1727144200828,0.38177,2619.5,2619.2,40.8]
[1727144201137,0.38176,2619.6,2619.3,2.68]
[1727144201531,4.19880661,2619.9,2619.3,2.68]
[1727144201834,3.2078,2619.9,2619.7,0.38174]
[1727144202135,0.99100661,2620.5,2619.8,7.40632]
[1727144202436,0.4909,2620.7,2620.4,2.68]
[1727144202739,0.4909,2620.7,2620.2,2.68]
[1727144202928,0.38162,2620.5,2620.3,40.8]
[1727144203124,0.38161,2620.6,2620.3,40.8]
[1727144203328,0.38162,2620.5,2620.3,40.8]
[1727144203729,7.40544,2620.4,2620.0,2.68]
[1727144203939,0.38166,2620.3,2620.0,2.68]
[1727144204131,0.3817,2620.0,2619.8,2.68]
[1727144204327,0.38168,2620.1,2619.8,43.48]
[1727144204834,0.38168,2620.1,2619.8,2.68]
[1727144205029,0.3817,2620.0,2619.8,2.68]
[1727144205226,0.38171,2619.9,2619.8,2.68]
[1727144205432,0.5051,2620.0,2619.5,2.68]
[1727144205634,0.5051,2620.0,2619.8,2.68]
[1727144205835,0.4863,2620.2,2619.8,2.68]
[1727144206034,0.4863,2620.2,2620.1,2.68]
[1727144206532,0.4863,2620.2,2619.9,40.8]
[1727144206533,4.68476,2620.2,2619.9,43.48]
[1727144206726,0.86796,2620.2,2619.9,40.8]
[1727144206938,0.38165,2620.3,2619.7,2.68]
[1727144207128,0.38165,2620.3,2619.9,2.68]
[1727144207333,0.5049,2620.4,2619.9,2.68]
[1727144207334,0.38167,2620.2,2619.9,2.68]
[1727144208345,0.38165,2620.3,2619.9,2.68]
[1727144209044,0.38167,2620.2,2619.9,2.68]
[1727144209444,0.38166,2620.3,2619.9,2.68]
[1727144209645,0.38167,2620.2,2619.9,2.68]
[1727144209940,4.3217,2620.4,2619.7,2.68]
[1727144210240,3.2078,2620.1,2619.5,2.68]
[1727144210445,0.38175,2619.6,2619.5,2.68]
[1727144211137,0.38177,2619.5,2619.3,2.68]
[1727144211339,0.38176,2619.6,2619.3,2.68]
[1727144212143,0.5248,2619.7,2619.3,2.68]
[1727144212445,0.38179,2619.4,2619.2,3.2078]
[1727144213035,0.5248,2619.7,2619.3,2.68]
[1727144213233,0.5248,2619.7,2619.6,2.68]
[1727144213648,0.4999,2619.9,2619.6,2.68]
[1727144214043,3.2078,2620.1,2619.6,3.06175]
[1727144214240,0.5182,2620.2,2619.6,3.06175]
[1727144214449,3.2078,2620.1,2619.6,3.06175]
[1727144214640,0.38169,2620.1,2619.9,2.68]
[1727144214952,0.38168,2620.1,2619.9,2.68]
[1727144216841,0.38169,2620.0,2619.9,2.68]
[1727144217344,0.38172,2619.9,2619.7,40.8]
[1727144217945,3.2078,2620.0,2619.6,2.68]
[1727144218547,3.2078,2620.0,2619.6,43.48]
[1727144218548,0.38174,2619.7,2619.6,43.48]
[1727144218749,3.2078,2619.7,2619.1,3.2078]
[1727144218939,3.2078,2619.7,2618.4,5.65902351]
[1727144218940,3.2078,2619.3,2618.4,5.8878]
[1727144219141,0.38194,2618.3,2618.2,2.68]
[1727144219343,3.2078,2619.0,2618.1,1.0256]
[1727144219344,0.38193,2618.4,2618.1,1.0256]
[1727144219545,0.38192,2618.5,2618.1,1.0256]
[1727144219938,0.38192,2618.5,2618.1,3.7056]
[1727144220338,0.5022,2618.9,2618.1,1.40757]
[1727144220538,3.2078,2618.5,2617.9,40.8]
[1727144220743,0.38193,2618.4,2617.5,4.2087]
[1727144220939,0.38204,2617.7,2617.5,3.6965]
[1727144221138,0.38204,2617.7,2617.5,3.2078]
[1727144221543,0.5022,2618.1,2617.5,3.2078]
[1727144222347,0.38199,2618.0,2617.5,3.2078]
[1727144222545,0.38201,2617.9,2617.5,3.2078]
[1727144222852,0.5022,2618.1,2617.5,3.2078]
[1727144222853,0.38199,2618.0,2617.5,3.2078]
[1727144223046,0.38199,2618.0,2617.5,6.5078]
[1727144223348,3.712,2618.4,2617.6,0.512]
[1727144223551,0.88614,2618.4,2617.8,3.3]
[1727144223856,0.5042,2618.4,2617.8,3.68201]
[1727144224052,0.89112,2618.5,2617.9,0.38199]
[1727144224560,0.3819,2618.6,2618.0,40.8]
[1727144224751,3.2078,2618.7,2618.0,40.8]
[1727144225250,0.3819,2618.6,2618.0,40.8]
[1727144225448,3.2078,2618.7,2618.2,3.2078]
[1727144225644,0.38188,2618.8,2618.2,3.2078]
[1727144225645,0.5092,2618.9,2618.2,3.2078]
[1727144225849,7.2898,2619.0,2618.4,3.3]
[1727144226248,4.082,2619.0,2618.5,3.5897]
[1727144226452,4.07761,2619.3,2618.5,3.7439]
[1727144226658,4.07761,2619.3,2618.7,3.3]
[1727144226659,0.488,2619.3,2618.7,3.3]
[1727144227757,0.5181,2619.5,2618.7,3.3]
[1727144228857,3.2078,2619.6,2618.9,0.38185]
[1727144229156,3.58956,2619.6,2619.0,0.5178]
[1727144229455,3.2078,2619.6,2619.0,0.89964]
[1727144229957,3.58955,2619.6,2619.1,40.8]
[1727144231249,0.38177,2619.5,2619.1,40.8]
[1727144231457,0.38179,2619.4,2619.1,40.8]
[1727144231658,0.38181,2619.2,2619.1,40.8]
[1727144231852,0.38181,2619.2,2618.8,3.2078]
[1727144231853,4.77202,2619.5,2618.8,3.2078]
[1727144232053,0.38184,2619.0,2618.8,3.2078]
[1727144232254,0.38182,2619.2,2618.8,44.0078]
[1727144232453,0.38183,2619.1,2618.8,44.0078]
[1727144232648,0.38183,2619.1,2618.8,3.2078]
[1727144233162,0.38182,2619.2,2618.9,40.8]
[1727144233865,0.38184,2619.1,2618.9,40.8]
[1727144234261,0.38182,2619.2,2618.9,40.8]
[1727144235464,3.2078,2619.3,2618.9,40.8]
[1727144235666,0.38177,2619.5,2619.0,0.38184]
[1727144235962,3.2078,2619.6,2619.1,3.3]
[1727144236154,0.38173,2619.8,2619.3,0.38179]
[1727144236562,4.46372,2619.9,2619.4,0.38178]
[1727144236754,0.5397,2620.1,2619.4,0.38177]
[1727144236961,0.38172,2619.8,2619.2,1.5964]
[1727144237358,0.38172,2619.8,2619.3,0.38179]
[1727144237661,0.5397,2620.1,2619.2,1.5964]
[1727144237861,0.5174,2620.2,2619.6,0.38174]
[1727144238066,0.5174,2620.2,2619.7,0.38173]
[1727144238067,0.89907,2620.2,2619.7,0.38173]
[1727144238257,0.5174,2620.2,2619.4,6.5078]
[1727144238454,0.38169,2620.1,2619.5,0.38176]
[1727144238761,0.89907,2620.2,2619.6,0.38174]
[1727144239066,0.38168,2620.1,2619.5,0.38176]
[1727144239260,0.5174,2620.2,2619.4,6.5078]
[1727144239453,0.89907,2620.2,2619.4,6.5078]
[1727144239661,0.5174,2620.2,2619.7,0.38174]
[1727144239956,3.2078,2620.3,2619.7,0.38173]
[1727144240156,3.2078,2620.3,2619.8,0.38171]
[1727144240358,7.8215,2620.6,2620.0,0.38168]
[1727144240555,0.99100661,2620.8,2620.0,6.5078]
[1727144240864,5.63062245,2620.9,2620.3,0.38164]
[1727144240865,3.7673,2620.9,2620.3,0.38164]
[1727144241254,3.7673,2620.9,2620.4,0.538]
[1727144241455,3.7673,2620.9,2620.4,0.91963]
[1727144241862,0.3816,2620.7,2620.3,3.2078]
[1727144242061,0.38158,2620.8,2620.3,3.2078]
[1727144242265,0.3816,2620.7,2620.3,3.2078]
[1727144242661,3.7673,2620.9,2620.3,3.2078]
[1727144243053,0.38161,2620.6,2620.3,3.2078]
[1727144243254,0.38162,2620.5,2620.1,40.8]
[1727144243464,1.37261661,2620.6,2620.1,40.8]
[1727144243658,0.38163,2620.5,2620.1,40.8]
[1727144244368,4.19880661,2620.6,2620.1,40.8]
[1727144244561,0.38166,2620.3,2620.1,40.8]
[1727144244758,0.99100661,2620.4,2619.8,3.2078]
[1727144244965,0.99100661,2620.2,2619.4,3.3]
[1727144245160,0.38171,2619.9,2619.5,0.38176]
[1727144245468,0.38171,2619.9,2619.6,40.8]
[1727144245870,0.3817,2620.0,2619.6,40.8]
[1727144246165,0.3817,2620.0,2619.6,41.18175]
[1727144246472,0.3817,2620.0,2619.6,40.8]
[1727144246771,0.38173,2619.8,2619.6,40.8]
[1727144247065,4.19880661,2620.0,2619.6,40.8]
[1727144247457,4.19880661,2620.0,2619.4,3.58958]
[1727144247458,0.38171,2619.9,2619.4,3.58958]
[1727144247659,0.38171,2619.9,2619.4,3.58957]
[1727144248054,0.38171,2619.9,2619.5,40.8]
[1727144248460,1.37271661,2619.9,2619.5,40.8]
[1727144249165,1.37271661,2619.9,2619.5,41.18176]
[1727144249366,0.99100661,2619.9,2619.5,40.8]
[1727144249568,4.19880661,2620.0,2619.6,0.38174]
[1727144249769,0.99100661,2619.9,2619.5,41.18176]
[1727144249959,1.37271661,2619.9,2619.5,40.8]
[1727144250164,4.80860661,2619.9,2619.5,40.8]
[1727144250356,0.38174,2619.7,2619.4,3.2078]
[1727144250963,0.38176,2619.6,2619.4,3.2078]
[1727144251162,3.2078,2620.0,2619.4,3.2078]
[1727144251163,0.38174,2619.7,2619.4,3.2078]
[1727144251762,0.38175,2619.6,2619.4,3.2078]
[1727144252063,3.2078,2619.6,2619.0,3.2078]
[1727144252258,0.38184,2619.0,2618.6,4.68269]
[1727144252469,0.95446,2619.4,2618.6,4.3008]
[1727144252661,0.38185,2619.0,2618.6,4.68269]
[1727144253063,0.38183,2619.1,2618.7,0.38188]
[1727144253361,8.3192,2619.5,2618.6,4.3008]
[1727144253560,0.38182,2619.2,2618.7,0.38188]
[1727144253759,0.38179,2619.4,2619.0,0.38184]
[1727144253967,8.3192,2619.5,2619.0,0.38184]
[1727144254258,8.3192,2619.5,2618.9,0.38185]
[1727144254259,0.38179,2619.4,2618.9,0.38185]
[1727144254472,0.38181,2619.3,2618.6,4.3008]
[1727144254667,9.27364,2619.5,2618.7,40.8]
[1727144254872,0.38184,2619.1,2618.7,40.8]
[1727144255075,8.3192,2619.5,2618.7,44.1]
[1727144255583,8.3192,2619.5,2619.1,0.38182]
[1727144255777,4.2372,2619.5,2619.0,3.2078]
[1727144256276,0.3818,2619.3,2618.8,0.38186]
[1727144256568,4.2372,2619.5,2618.7,41.18188]
[1727144256772,4.2372,2619.5,2618.7,40.8]
[1727144256773,0.38187,2618.8,2618.7,40.8]
[1727144257274,3.8184,2618.8,2618.2,3.2078]
[1727144257473,0.38194,2618.4,2618.2,3.2078]
[1727144257665,0.38191,2618.5,2618.3,40.8]
[1727144259167,1.1056,2618.7,2618.3,40.8]
[1727144259361,1.48749,2618.7,2618.3,40.8]
[1727144259565,0.38186,2618.9,2618.4,0.38192]
[1727144259968,4.082,2619.0,2618.5,0.3819]
[1727144259969,4.46384,2619.0,2618.5,0.3819]
[1727144260166,0.38186,2618.9,2618.4,0.38192]
[1727144260368,7.67464,2619.1,2618.5,0.3819]
[1727144260570,7.2928,2619.1,2618.3,40.8]
[1727144261271,0.3819,2618.7,2618.3,40.8]
[1727144261965,0.3819,2618.7,2618.3,41.18194]
[1727144262367,3.2078,2619.1,2618.7,0.38187]
[1727144262570,1.54260661,2619.3,2618.8,0.5704]
[1727144262571,0.38181,2619.3,2618.8,0.5704]
[1727144262769,7.2898,2619.4,2618.8,0.5704]
[1727144262970,0.38183,2619.1,2618.8,0.5704]
[1727144263467,3.8184,2619.0,2618.3,44.0078]
[1727144263772,3.8184,2619.0,2618.4,0.38192]
[1727144263773,0.94365,2619.0,2618.4,0.38192]
[1727144264076,0.38187,2618.8,2618.3,44.0078]
[1727144264573,0.38186,2618.9,2618.3,44.38974]
[1727144265076,0.38187,2618.8,2618.3,44.0078]
[1727144265278,0.38187,2618.8,2618.3,44.38974]
[1727144265477,0.38186,2618.9,2618.3,44.38974]
[1727144265771,0.5618,2619.0,2618.5,0.3819]
[1727144266473,0.3818,2619.3,2618.4,3.3]
[1727144266681,3.2078,2619.2,2618.4,3.3]
[1727144266880,0.38184,2619.0,2618.3,44.0078]
[1727144267177,0.38184,2619.0,2618.4,0.38192]
[1727144267568,3.2078,2619.2,2618.5,0.3819]
[1727144267776,0.38182,2619.1,2618.5,0.3819]
[1727144268168,3.2078,2619.2,2618.3,44.0078]
[1727144268374,3.2078,2619.2,2618.8,0.38186]
[1727144268772,3.2078,2619.3,2618.9,0.38185]
[1727144268973,3.2078,2619.3,2618.9,0.93495]
[1727144270080,1.0693,2619.5,2619.0,0.38183]
[1727144270276,1.0693,2619.5,2618.9,0.5531]
[1727144270586,1.0693,2619.5,2619.1,40.8]
[1727144270779,1.0693,2619.5,2619.1,41.18182]
[1727144271183,0.99100661,2619.8,2619.1,40.8]
[1727144271371,0.5422,2619.7,2619.1,40.8]
[1727144271571,0.38177,2619.5,2619.1,40.8]
[1727144271877,0.38177,2619.5,2618.4,0.38192]
[1727144271878,0.38185,2618.9,2618.4,0.38192]
[1727144272182,0.38185,2618.9,2618.3,3.2078]
[1727144272183,0.38188,2618.8,2618.5,40.8]
[1727144272370,0.38186,2618.9,2618.5,40.8]
[1727144272573,0.38182,2619.1,2618.6,0.3819]
[1727144272774,4.75910661,2619.2,2618.5,40.8]
[1727144272977,0.38186,2618.9,2618.5,40.8]
[1727144273283,0.38185,2619.0,2618.5,41.1819]
[1727144273781,0.38183,2619.1,2618.6,0.38189]
[1727144274279,3.7681,2619.2,2618.5,40.8]
[1727144274484,4.14992,2619.2,2618.5,40.8]
[1727144274988,4.14992,2619.2,2618.7,0.38187]
[1727144276379,0.38183,2619.1,2618.6,0.38189]
[1727144276586,4.14992,2619.2,2618.5,40.8]
[1727144276778,4.14992,2619.2,2618.7,0.38188]
[1727144278182,3.7681,2619.2,2618.5,40.8]
[1727144278383,0.38183,2619.1,2618.5,40.8]
[1727144278585,0.38184,2619.0,2618.5,41.1819]
[1727144278984,0.38186,2618.9,2618.5,41.1819]
[1727144279285,0.38186,2618.9,2618.5,40.8]
[1727144279673,0.38186,2618.9,2618.5,41.18191]
[1727144280076,0.38186,2618.9,2618.5,40.8]
[1727144280481,0.38186,2618.9,2618.5,41.18191]
[1727144281285,4.14992,2619.2,2618.7,0.38187]
[1727144281589,0.38183,2619.1,2618.7,0.38187]
[1727144281783,0.38183,2619.1,2618.6,3.58969]
[1727144281983,0.38182,2619.1,2618.6,3.58969]
[1727144282185,3.2078,2619.2,2618.6,3.58969]
[1727144282478,0.38183,2619.1,2618.6,3.58969]
[1727144283080,3.2078,2619.2,2618.6,3.58969]
[1727144283081,0.38184,2619.0,2618.6,3.58969]
[1727144283478,3.2078,2619.2,2618.6,3.2078]
[1727144283880,0.38182,2619.1,2618.6,3.58969]
[1727144284080,0.38184,2619.0,2618.6,3.58969]
[1727144284886,3.2078,2619.2,2618.6,3.58969]
[1727144285086,0.38184,2619.0,2618.6,3.58969]
[1727144286788,0.38184,2619.0,2618.5,43.48]
[1727144286789,4.16234,2619.2,2618.5,40.8]
[1727144287488,4.16234,2619.2,2618.5,41.18191]
[1727144287786,0.38187,2618.9,2618.5,40.8]
[1727144287987,0.38185,2619.0,2618.6,0.38188]
[1727144288185,3.2078,2619.2,2618.6,0.38188]
[1727144288389,0.38184,2619.1,2618.7,0.38188]
[1727144288691,0.38184,2619.0,2618.6,0.38189]
[1727144289090,0.38184,2619.0,2618.7,0.38188]
[1727144289294,0.38184,2619.0,2618.6,0.3819]
[1727144289497,0.38186,2618.9,2618.5,43.8619]
[1727144290187,0.38185,2619.0,2618.6,0.38189]
[1727144290387,1.37877512,2619.1,2618.7,0.38187]
[1727144290587,1.37877512,2619.1,2618.5,43.48]
[1727144290588,0.99694512,2619.2,2619.1,0.38182]
[1727144290891,0.99694512,2619.5,2619.2,0.3818]
[1727144291085,0.99694512,2619.6,2619.3,3.2339]
[1727144291280,0.99694512,2619.6,2619.3,0.5539]
[1727144291589,1.37869512,2619.6,2619.3,0.5539]
[1727144291797,0.99694512,2619.5,2619.3,0.5539]
[1727144291991,0.99694512,2619.6,2619.3,0.5539]
[1727144292291,0.99694512,2619.5,2619.3,0.5539]
[1727144292587,0.99694512,2619.6,2619.3,0.5539]
[1727144293105,0.99694512,2619.5,2619.3,0.5539]
[1727144293293,0.99694512,2619.5,2619.3,0.9357]
[1727144293689,0.99694512,2619.5,2619.3,0.5539]
[1727144294083,0.99694512,2619.6,2619.3,0.5539]
[1727144294289,0.99694512,2619.6,2619.3,0.93569]
[1727144294789,0.99694512,2619.7,2619.6,0.38175]
[1727144294988,0.99694512,2619.7,2619.3,4.3715]
[1727144294989,0.99694512,2619.7,2619.3,0.5539]
[1727144295192,0.99694512,2619.8,2619.5,0.38176]
[1727144295991,0.99694512,2620.0,2619.5,4.01330731]
[1727144296295,0.99694512,2620.2,2619.8,0.38171]
[1727144296494,0.99694512,2620.1,2619.9,40.8]
[1727144297086,1.37863512,2620.0,2619.4,0.38178]
[1727144297287,0.99826663,2619.8,2619.3,3.7617]
[1727144297488,0.99826663,2619.7,2619.3,3.7617]
[1727144297696,0.99826663,2619.7,2619.3,44.94349]
[1727144297892,0.99826663,2619.7,2619.4,0.38178]
[1727144298091,2.16976663,2619.9,2619.3,44.5617]
[1727144298290,0.99826663,2619.8,2619.3,44.5617]
[1727144298492,1.37999663,2619.8,2619.3,44.94349]
[1727144298792,0.99826663,2619.7,2619.1,0.5541]
[1727144298996,0.3818,2619.3,2619.1,0.5541]
[1727144299296,0.38183,2619.1,2618.8,40.8]
[1727144299500,0.38183,2619.1,2618.7,0.5533]
[1727144299501,0.99826663,2619.1,2618.6,3.7869]
[1727144299689,0.38184,2619.0,2618.6,3.7869]
[1727144299891,1.38010663,2619.0,2618.6,3.7869]
[1727144300191,0.38184,2619.0,2618.6,3.7869]
[1727144300387,1.56436663,2619.1,2618.6,4.1688]
[1727144300785,1.56436663,2619.1,2618.6,4.16879]
[1727144301584,1.56436663,2619.1,2618.6,3.7869]
[1727144301788,0.38188,2618.7,2618.4,40.8]
[1727144302091,0.3819,2618.6,2618.4,40.8]
[1727144302594,0.99826663,2618.6,2618.4,40.8]
[1727144302791,0.38189,2618.7,2618.4,40.8]
[1727144302792,0.99826663,2618.7,2618.4,40.8]
[1727144302993,0.99826663,2618.8,2618.4,41.18193]
[1727144303188,0.99826663,2618.8,2618.5,0.3819]
[1727144303697,0.99826663,2618.8,2618.4,41.18192]
[1727144303886,4.20606663,2618.9,2618.4,41.18192]
[1727144305195,4.58792663,2618.9,2618.4,40.8]
[1727144305599,0.99826663,2618.8,2618.4,40.8]
[1727144306392,0.99826663,2618.8,2618.4,41.18192]
[1727144307097,0.99826663,2618.8,2618.4,40.8]
[1727144307691,4.20606663,2618.9,2618.5,0.38191]
[1727144309098,4.20606663,2618.9,2618.4,40.8]
[1727144309099,4.20606663,2618.9,2618.4,41.18192]
[1727144309296,4.20606663,2618.9,2618.4,40.8]
[1727144309496,0.38188,2618.8,2618.4,40.8]
[1727144309800,0.99826663,2618.9,2618.4,40.8]
[1727144309995,2.55999025,2619.1,2618.7,0.38187]
[1727144309996,1.56436663,2619.1,2618.7,0.38187]
[1727144310190,1.56436663,2619.1,2618.8,0.5465]
[1727144310386,0.99826663,2619.1,2618.8,0.92837]
[1727144310600,1.58486663,2619.2,2618.8,0.5465]
[1727144310799,1.58486663,2619.2,2618.8,0.92836]
[1727144311596,1.58486663,2619.2,2618.9,0.38185]
[1727144311802,5.08026663,2619.3,2618.9,0.38185]
[1727144312100,0.99826663,2619.3,2618.9,0.38185]
[1727144312594,0.99826663,2619.3,2618.8,0.5465]
[1727144312792,0.99826663,2619.3,2619.1,0.38182]
[1727144312996,0.99826663,2619.5,2619.0,3.2078]
[1727144313300,1.58386663,2619.6,2619.2,0.3818]
[1727144313692,0.99826663,2619.5,2619.2,0.3818]
[1727144313994,0.99826663,2619.6,2619.4,0.38178]
[1727144314198,0.99826663,2619.7,2619.5,0.94186]
[1727144314707,0.99826663,2619.7,2619.6,40.8]
[1727144315000,0.99826663,2619.8,2619.6,40.8]
[1727144316100,0.38174,2619.7,2619.6,40.8]
[1727144316300,1.37999663,2619.8,2619.6,40.8]
[1727144316602,0.99826663,2619.7,2619.6,40.8]
[1727144316992,0.99826663,2619.7,2619.3,3.58959]
[1727144317397,0.99826663,2619.8,2619.4,0.38177]
[1727144317592,0.99826663,2619.8,2619.5,41.18176]
[1727144317801,0.99826663,2619.8,2619.6,0.38175]
[1727144318103,0.99826663,2619.8,2619.5,40.8]
[1727144318104,4.58777663,2619.9,2619.5,40.8]
[1727144318303,0.99826663,2619.9,2619.6,0.38175]
[1727144318504,0.99826663,2620.0,2619.6,0.38175]
[1727144318803,1.37995663,2620.0,2619.6,0.38175]
[1727144318998,0.99826663,2619.9,2619.6,0.38175]
[1727144319195,0.99826663,2619.9,2619.5,41.18176]
[1727144319602,0.99826663,2619.9,2619.6,0.38175]
[1727144319800,1.37998663,2619.9,2619.6,0.5453]
[1727144321200,4.58778663,2619.9,2619.6,0.5453]
[1727144322104,0.38173,2619.8,2619.5,40.8]
[1727144322409,0.38176,2619.6,2619.3,3.2078]
[1727144322705,0.99826663,2619.8,2619.3,3.2078]
[1727144323207,0.38178,2619.5,2619.3,3.2078]
[1727144323395,0.99826663,2619.6,2619.3,3.2078]
[1727144323594,0.99826663,2619.7,2619.4,0.38178]
[1727144323896,1.38001663,2619.7,2619.3,3.58959]
[1727144325898,0.38178,2619.4,2619.3,3.2078]
[1727144326304,4.19938,2619.4,2619.3,3.2078]
[1727144326499,0.3818,2619.3,2619.0,0.5619]
[1727144327109,0.3818,2619.3,2619.0,41.3619]
[1727144327807,0.3818,2619.3,2619.0,41.74374]
[1727144328512,0.99826663,2619.4,2619.0,41.3619]
[1727144328708,1.96823663,2619.5,2619.1,0.38182]
[1727144329121,1.96824663,2619.5,2619.1,0.38182]
[1727144329408,0.38179,2619.4,2619.0,47.63153]
[1727144329707,0.38179,2619.4,2619.0,47.2497]
[1727144329913,0.38179,2619.4,2619.0,47.63153]
[1727144331704,1.58646663,2619.5,2619.0,47.2497]
[1727144331905,1.58646663,2619.5,2619.1,0.38182]
[1727144332108,0.5882,2619.5,2619.0,47.2497]
[1727144332302,5.12942663,2619.6,2619.3,2.68]
[1727144332303,4.74766663,2619.6,2619.3,2.68]
[1727144332504,3.2078,2619.6,2619.4,0.38178]
[1727144334209,3.2078,2619.6,2619.3,3.06179]
[1727144334412,4.20606663,2619.6,2619.3,3.06179]
[1727144334613,0.38181,2619.3,2619.0,44.0078]
[1727144334814,3.67826663,2619.1,2618.3,0.99836371]
[1727144335005,0.382,2618.0,2617.5,4.75796371]
[1727144335203,0.38204,2617.7,2617.5,3.7596]
[1727144335505,2.68,2618.0,2617.1,2.68]
[1727144335506,0.38204,2617.6,2617.1,2.68]
[1727144335708,0.995273,2617.9,2617.3,3.06208]
[1727144335709,0.995273,2617.8,2617.3,3.06208]
[1727144335912,0.995273,2617.8,2617.3,43.86208]
[1727144336108,1.377283,2617.9,2617.3,43.86208]
[1727144336309,0.995273,2618.0,2617.5,0.38205]
[1727144336514,1.377263,2618.0,2617.5,0.38205]
[1727144336710,1.377273,2617.9,2617.3,44.0078]
[1727144337013,1.49353049,2618.0,2617.4,0.38207]
[1727144337014,1.377263,2618.0,2617.4,0.38207]
[1727144337316,0.38199,2618.0,2617.4,0.38207]
[1727144337516,7.265053,2618.1,2617.5,0.38206]
[1727144337818,4.203073,2618.1,2617.5,0.38206]
[1727144338123,4.585043,2618.1,2617.5,0.38206]
[1727144338418,3.58977,2618.1,2617.5,0.38206]
[1727144338815,3.2078,2618.1,2617.4,0.38207]
[1727144339116,3.2078,2618.1,2617.3,44.0078]